{"text_format":"3","workbook":"xlsx","n_sheets":2,"sheets":["Sheet1","实施计划"],"not_rendered":{"defined_names":2,"pivot_tables":1},"read":"whole","date_system":"1900"}

{"sheet":"Sheet1","index":0,"n_rows":7,"n_cols":2,"rows_kept":7}
[]
[]
["项目类型","计数项:项目计划投入\n（万元）"]
["公共服务类",1]
["公共基础设施",26]
["公共教育",4]
["总计",31]

{"sheet":"实施计划","index":1,"n_rows":37,"n_cols":14,"rows_kept":37,"merged":[[1,0,1,13],[2,0,2,4],[2,12,2,13]]}
["附件2："]
["2025年揭西县乡村振兴驻镇帮镇扶村资金项目实施计划（第十四批）"]
[{"$nulls":12},"单位：万元          日期：2025年8月7日"]
["序号","县","镇","村","项目名称","项目类型","项目计划投入\n（万元）","东莞市驻镇帮镇扶村资金(揭西财农[2025]13号)","市级资金（揭西财农[2025]25号）","县级配套资金","实施主体","建设任务\n（概要描述）","绩效目标\n（概要描述）","备注"]
[1,"揭西县","五云镇","/","2025年度五云镇绿美生态建设项目","公共基础设施",{"$f":"H5+I5+J5","v":80},80,0,0,"五云镇人民政府","下硿村打造绿美示范村（红色乡村），主要包括打造一条200米以上的绿化景观路、一处50平方米以上的公共休闲绿地、打造一处红色文化主题公园、完善村庄标识系统等。\n坡苏村打造绿美示范村（古树园），主要包括打造一处50平方米以上的公共休闲绿地、打造一处古树园、完善村庄标识系统等。\n双岭村、富厚村和宝石村打造绿美乡村，主要包括打造一处50平方米以上的公共休闲绿地、完善村庄标识系统等。","通过实施绿美建设项目，通过打造一批绿美乡村示范村，引领带动乡村绿化覆盖率,树种结构明显优化，有绿、有花、有果，乡村绿化美化水平全面提升。"]
[2,"揭西县","河婆街道","/","河婆街道大华小学学生公共厕所及安全停车区等建设项目","公共教育",69,0,0,69,"河婆街道","1.建设学生公共厕所，设蹲位36个及其他配套设施，消除安全隐患，建设面积约130㎡；2.建设安全停车区、校道、丙烯酸学生活动场地、遮阳棚、器材室等，面积约1200㎡。","通过实施河婆街道大华小学学生公共厕所及安全停车区等建设项目，对大华小学进行提升改造，完善学校教育基础设施，提升镇域公共教育能力。"]
[3,"揭西县","河婆街道","/","河婆街道星曜城幼儿园活动园地建设及安防建设项目","公共教育",48,0,0,48,"河婆街道","1、三楼幼儿实践基地建设，面积1050平方米：四周种植区（垄沟式菜地、配匹工具；无土栽培架、温湿度传感器等），中间活动场地，安装幼儿园主题牌等。2、安防建设，包括园区监控、智能门禁系统、一键报警及公安联网监控、预警设备及智能广播等。","通过实施河婆街道星曜城幼儿园活动园地建设及安防建设项目，对活动场地、安防设施等升级改造，完善基础设施，解决周边群众子女上公办园难问题，提升镇域公共教育能力。"]
[4,"揭西县","河婆街道","/","揭西县纪达中学运动场第三期工程","公共教育",125,0,0,125,"河婆街道","1、新建学生厕所；2、新建运动场周围场地及其他配套场地设施等拟改造面积约3300平方米。","通过实施揭西县纪达中学运动场第三期工程，对纪达中学进行提升改造，完善学校教育基础设施，提升镇域公共教育能力。"]
[5,"揭西县","坪上镇","红旗村","揭西县坪上镇红旗村伯新路路基建设项目","公共基础设施",10,10,0,0,"坪上镇人民政府","对红旗村伯新路路基进行建设，新建挡土墙288米长，挖运土方约9500立方米，铺设涵管24米。","通过实施揭西县坪上镇红旗村伯新路路基建设项目，完善道路基础设施，方便周边村民通行。"]
[6,"揭西县","坪上镇","尖田村","揭西县坪上镇尖田村上岭至尖田小学道路扩宽硬化项目","公共基础设施",19,19,0,0,"坪上镇人民政府","对尖田村上岭至尖田小学段道路进行升级改造，硬化路面全长约260米，路面均宽3米，厚15厘米，配套安装太阳能路灯。","通过实施揭西县坪上镇尖田村上岭至尖田小学道路扩宽硬化项目，对尖田村上岭至尖田小学的道路进行扩宽硬化，方便学生上学和村民通行，消除安全隐患，改善村容村貌。"]
[7,"揭西县","坪上镇","四和村","揭西县坪上镇四和村委石圳坑至黄连湖路灯安装项目","公共基础设施",12,12,0,0,"坪上镇人民政府","在四和村委石圳坑金山路路口至黄连湖老寨路段安装太阳能路灯，全长约860米，安装路灯太阳能路灯35套；在黄连湖新寨至大溪交界路段安装太阳能路灯，全长约435米，安装太阳能路灯17套。","通过实施揭西县坪上镇四和村委石圳坑至黄连湖路灯安装项目，改善夜间行车条件，消除安全隐患，保障村民群众的生命财产安全。"]
[8,"揭西县","坪上镇","上仓村","揭西县坪上镇上仓村村道安全护栏建设项目","公共基础设施",15,15,0,0,"坪上镇人民政府","对村内三处约560米安装见光高度0.6米高双峰波纹护栏：①村主干道450米；②百岁堂门前路60米；③村最后面路50米。","通过实施揭西县坪上镇上仓村村道安全护栏建设项目，上仓村村道安装安全护栏，消除安全隐患，保障村民的生命财产安全，改善村容村貌。"]
[9,"揭西县","南山镇","上寮村","揭西县南山镇上寮村公共休闲场所建设项目","公共基础设施",285,245,0,40,"上寮村","在上寮桥头地段建设公共休闲场所，打造沿河主题休闲场所，占地面积约22亩，主要建设内容为：对原有场地进行清理及平整面积约15000㎡，休闲场所铺装建设约4860平方米，绿化提升面积约9000㎡，配套旅游服务设施（驿站等）建筑面积约500㎡，鱼鳞坝景点周边配套提升面积约400㎡，配套建设南山特色节点约5处，路灯约46盏，文化宣传设施、园建构筑物、休闲坐凳、文体设施等，具体以设计为准。","通过实施绿美项目，村庄绿化美化水平全面提升，有效改善人居环境。"]
[10,"揭西县","南山镇","上寮村","揭西县南山镇上寮村美丽河道提升项目","公共基础设施",{"$f":"H14+I14+J14","v":200},200,0,0,"上寮村","对上寮桥至百香果园及上寮桥至榕光桥段河道进行整治提升长度约600m，包括对河道及沿河路进行清理整治，改造面积约24600㎡；沿河亲水步行道建设约1200㎡，并对上寮村拦河坝进行改造提升等；对原有土路进行硬底化升级，面积约2500㎡；将原上寮村垃圾收集点改造建设智慧停车场，建设停车位、充电桩等，面积约360㎡，以及建设灯光等配套设施。","通过提升，改善上寮村人居环境，提高群众获得感、幸福感。"]
[11,"揭西县","南山镇","南山镇","揭西县南山镇人居环境整治提升工程","公共基础设施",170,170,0,0,"南山镇","对关西村至上寮村沿河段进行清理整治，新建2m宽沿路人行步道约729m；1m宽亲水漫步道约565m；0.6m宽耕作田埂约179㎡，改造提升原有沿河步道约1030米；绿地改造约120㎡；周边环境提升约314㎡，配套打造亲水平台、垂钓平台、相关节点改造提升等。","通过实施人居环境整治项目，村庄绿化美化水平全面提升，有效改善人居环境。"]
[12,"揭西县","南山镇","北河村","南山镇北河村北河路排水沟及路灯建设工程","公共基础设施",125,125,0,0,"北河村","在北河村新联自然村至条河电站门口（北河路）等路段建设排水沟，安装约120盏太阳能路灯及相关配套设施建设。","通过提升，改善北河村出行环境，提高群众出行安全，提高群众获得感、幸福感。"]
[13,"揭西县","南山镇","火炬村","揭西县南山镇火炬村村庄整治提升项目","公共基础设施",25,25,0,0,"火炬村","本项目主要对火炬村现有节点进行整治提升，并对村内相关文化宣传设施进行升级等，重点展现当地红色文化特色和村庄风貌，进一步丰富红色文化、和美乡村氛围，提升村庄形象。","通过提升，改善火炬村人居环境，提高群众获得感、幸福感。"]
[14,"揭西县","南山镇","道南小学","南山镇道南小学运动场改造维修工程","公共教育",36,36,0,0,"道南小学","对学校运动场进行改造维修，具体改造项目包括：铺设13mm混合型新国标塑胶跑道，重建运动场排水沟与砂井系统，建设5mm丙烯酸球场，以及更新运动场排水管。旨在解决运动场地面不平整和排水系统不佳的问题，消除安全隐患。","通过项目实施：1.使我校跑道与球场，达到国家标准，混合型新国标塑胶跑道厚度达13mm、丙烯酸球场厚度达5mm，提供良好的运动体验。2.排水系统得到优化，确保运动场在雨天能够迅速排水，无积水现象，保障师生安全。\n3.时效目标：项目开始实施一个月内完成项目建设。\n4.收益群众满意度：提升师生的运动体验，提高师生对学校环境的满意度。"]
[15,"揭西县","南山镇","西友村、分水村、前锋村、南河村","揭西县南山镇主干道连接村道道路硬底化及配套设施工程","公共基础设施",10,10,{"v":0,"d":"0.0"},0,"西友村、分水村、前锋村、南河村","南山镇主干道连接西友等村道道路硬底化及配套设施工程，总长度约200米，宽约3-5米。","通过提升，改善西友等村周边人居环境，提高群众获得感、幸福感。"]
[16,"揭西县","南山镇","南山村","揭西县南山镇南山村排水设施改造项目","公共基础设施",15,15,0,0,"南山村","对南山村主干道及周边排水系统共约300米进行升级改造，建设排水口、沉沙井、排水管道及相关配套设施等。","通过升级改造，改善南山村及周边排水功能，提高群众获得感、幸福感。"]
[17,"揭西县","南山镇","上寮村","揭西县南山镇示范带沿途节点提升项目","公共基础设施",{"$f":"H21+I21+J21","v":200},0,{"v":200,"d":"200.0"},0,"上寮村","沿着示范带进行三线整治，整治长度约1400m；并在上寮村坪径地段、茂然农业产业基地周边、大新村芳名牌周边空地、关西村纸巾厂对面区域等相关节点位置建设党建主题宣传点，单个节点面积约300㎡，总面积约1600㎡；对示范带道路两侧未进行绿化设计的区域进行绿化提升（重点打造交叉路口区域）面积约4600㎡；对示范带沿途桥梁进行改造提升，共4座桥梁；示范带中途增设定制南山党建主题展示雕塑；配套建设沿途标识、指引、宣传展板及配套等相关设施设备。","通过提升，改善示范带周边人居环境，提高群众获得感、幸福感。"]
[18,"揭西县","京溪园镇","新联村","京溪园镇新联石湖山村池塘改造提升项目","公共基础设施",97,97,0,0,"新联村","对新联石湖山村池塘进行改造提升，淋混凝土挡土墙约500米，配套人行道、安全防护栏、照明等设施（具体以设计为准）。","通过实施项目，改善新联石湖山村人居环境，提升村容村貌。项目受益群众满意度>90%。"]
[19,"揭西县","京溪园镇","上陇村","京溪园镇上陇村洋心路路面破损修复项目","公共基础设施",38,38,0,0,"上陇村","拆除上陇村洋心路破损路面进行重新浇筑，长约585米，平均宽约3.3米，砼厚度18厘米（具体以设计为准）。","提升上陇村公共设施水平，改善人居环境，方便村民出行，项目满意度90％。"]
[20,"揭西县","上砂镇","/","上砂镇农产品质量安全检测项目","公共服务类",5,0,{"v":5,"d":"5.0"},0,"上砂镇人民政府","用于农产品质量安全检测，完成检测任务。","通过农产品质量安全检测，完成农产品的检测任务，确保上砂镇农产品质量安全。"]
[21,"揭西县","上砂镇","/","上砂镇圩镇“六乱”整治项目","公共基础设施",50,0,{"v":50,"d":"50.0"},0,"上砂镇人民政府","对圩镇内存在的破旧雨篷、遮阳篷、违规商业广告招牌等破旧附属设施和影响灭火救援、疏散逃生障碍物进行清理，整治圩镇公共空间、主次干道占道经营、乱摆卖、堵塞消防车通道、电动车违规停放充电乱象。","改善圩镇人居环境，确保镇区环境卫生整洁，构建清洁、整齐、生态、优美的环境。"]
[22,"揭西县","上砂镇","/","上砂镇圩镇“烟火市集”建设项目","公共基础设施",34,0,{"v":34,"d":"34.0"},0,"上砂镇人民政府","打造上砂镇圩镇“烟火市集”广场，改造修缮老旧店面约16间，对广场空地进行平整，整治房前屋后环境，增设本地文化及地标元素。","通过圩镇“烟火市集”广场打造，盘活闲置老旧店面，创造就业岗位，打造上砂镇圩镇新地标。项目预算投资50万元，店面出租年收益约8万元。"]
[23,"揭西县","上砂镇","上山村","上砂镇上山村南蛇岗至大湖洋茶园农耕路硬底化及水沟建设工程","公共基础设施",13,0,{"v":13,"d":"13.0"},0,"上山村民委员会","完善南蛇岗至大湖洋茶园农耕路硬底化建设，总长约200米，宽4米、厚度15公分的道路硬底化及道路排水沟建设。","通过道路硬底化及相关配套设施建设，提升镇村公共基础设施水平，有效保障茶农在采摘期间交通运输安全，周边茶园面积约1500亩。项目预算投资15万元，资金缺口由镇、村统筹解决。"]
[24,"揭西县","上砂镇","上联村","上砂镇上联白石宫灌溉渠修建工程","公共基础设施",12,0,{"v":12,"d":"12.0"},0,"上联村民委员会","对上联村白石宫灌溉渠进行修建，硬底化长23米、宽17米、厚0.15米；新建长22米、高1.5米、厚平均0.6米钢筋混凝土挡墙，重建长40米，含基础高为3.5米，宽约0.6米钢筋混凝土挡土墙；修建灌溉水沟长72米。","通过灌渠建设，解决农田灌溉面积约500亩及预防山洪灾害，有效提高生产效率。"]
[25,"揭西县","上砂镇","活动村","上砂镇活动大坪路段塌方修复工程","公共基础设施",60,0,{"v":60,"d":"60.0"},0,"活动村民委员会","设计灾毁清理面积：30米长，平均高度35米，面积合计1050平方米。","通过抢险修复工程，解决新岭行政村及活动部分自然村唯一通行道路安全问题，保障路段周边2个村群众约3500人通行安全，消除安全隐患。项目预算投资83万元，资金缺口由镇、村统筹解决。"]
[26,"揭西县","上砂镇","径上村","上砂镇径上村田督美自然村水毁抢险修复工程","公共基础设施",50,0,{"v":50,"d":"50.0"},0,"径上村民委员会","在田督美路水毁路段加固河道侧护坡，修建一面长约130米、高约7米的石砌挡土墙，水下部分最底层做2厘米厚垫层，第二层砌1米高挡土墙；水上部分砌7米高挡土墙，路面部分做硬底化建设。","通过修建挡土墙,增强护坡抗洪能力，消除田督美道路安全隐患，提升径上村的道路基础设施质量，解决径心、径上两个行政村约5000人通行安全问题。"]
[27,"揭西县","上砂镇","联中村","上砂镇联中村车巷至活动水口桥崩塌抢险修复工程","公共基础设施",35,0,{"v":35,"d":"35.0"},0,"联中村民委员会","对被洪水冲毁河段进行加固修复，长60米，高度约4米。","通过抢险修复工程，保障周边群众约700人通行安全，消除安全隐患。项目预算投资40万元，资金缺口由镇、村统筹解决。"]
[28,"揭西县","上砂镇","三水村","上砂镇活动村枥湖段及荷陂路口抢险修复工程","公共基础设施",29,0,{"v":29,"d":"29.0"},0,"三水村民委员会","对活动村枥湖段路面排水设施损毁及荷陂路口、三水桥头掏空处进行修复。","通过抢险修复工程，解决双联片7个行政村及活动村个别自然村唯一通行道路通行安全问题，保障路段周边8个行政村群众约7000人通行安全，消除安全隐患。项目预算投资32万元，资金缺口由镇、村统筹解决。"]
[29,"揭西县","上砂镇","活动村","上砂镇活动坑背河堤塌方修复工程","公共基础设施",12,0,{"v":12,"d":"12.0"},0,"活动村民委员会","对活动村坑背塌方段进行修复，新砌河堤长度约17米，高约4米。","通过河堤塌方修复项目建设，有效解决塌方风险问题，保障周边群众约1000人通行安全。项目预算投资15万元，资金缺口由镇、村统筹解决。"]
[30,"揭西县","金和镇","杜塘村","2025年度金和镇杜塘村后芸农田灌溉水泵改造提升项目","公共基础设施",15,0,15,0,"杜塘村","对杜塘村后芸灌溉水泵进行替换更新，需更换水泵机，对拦污网进行全面更换，以及对下游部分进行清淤，以确保拦河闸的正常运行和灌溉需求。","通过实施2025年度金和镇杜塘村后芸农田灌溉水泵改造提升项目，满足养殖户和种植户的生产作业需求，促进养殖和种植业增产增收。"]
[31,"揭西县","金和镇","和西村","2025年度金和镇和西村和西拦河坝修缮项目","公共基础设施",35,0,35,0,"和西村","对和西拦河坝左右两侧合共5套水泵机及钢闸门进行替换更新，对拦污网进行全面更换，以确保拦河闸的正常运行和防洪安全。","通过实施2025年度金和镇和西村和西拦河坝修缮项目，达到更好的解决上下游农业灌溉需求，同时在防洪方面也能发挥不可替代的作用。"]
[32,"揭西县","金和镇","仙坡村","2025年度金和镇仙坡村农贸市场建设项目","公共基础设施",350,0,250,0,"金和镇人民政府","拟改建金和镇仙坡村农贸市场，占地约1100㎡，建筑面积约1500㎡，其中包括建设单层商铺15间及双层商铺6间，拟将商铺出租增加集体收入，并利用双层商铺的顶层作为自然村办公室、民俗活动室及文化宣传中心，项目计划投入资金350万元，不足部分由镇政府统筹各年度驻镇帮镇扶村结余资金、集体资金等其他资金以及向上级继续申请资金进行补充实施。","通过实施2025年度金和镇仙坡村农贸市场建设项目，达到促进农村经济发展，增加农村居民就业机会的目的。"]
[{"$nulls":5},"合计",{"$f":"SUM(G5:G36)","v":2279},{"$f":"SUM(H5:H36)","v":1097},{"$f":"SUM(I5:I36)","v":800},{"$f":"SUM(J5:J36)","v":282}]